bitfinex-derivatives/quotes_BTCF0:USTF0_20260315
["timestamp","ask_amount","ask_price","bid_price","bid_amount"]
[1773543051852,0.041921,71551.0,71537.0,0.00144]
[1773543052966,0.041918,71556.0,71541.0,0.041927]
[1773543053167,0.33634618,71559.0,71541.0,0.041927]
[1773543053368,0.04192,71554.0,71539.0,0.041928]
[1773543053564,0.0001028,71553.0,71539.0,0.37732657]
[1773543053766,0.04122149,71554.0,71540.0,0.37732557]
[1773543054563,0.33634618,71559.0,71540.0,0.33539857]
[1773543054763,0.0001028,71553.0,71540.0,0.33539857]
[1773543054965,0.0001028,71552.0,71542.0,0.041926]
[1773543055165,0.041919,71556.0,71542.0,0.37732457]
[1773543055873,0.041919,71555.0,71542.0,0.37732457]
[1773543056072,0.041918,71557.0,71542.0,0.37732457]
[1773543056466,0.041918,71557.0,71543.0,0.041926]
[1773543056764,0.041918,71557.0,71544.0,0.00144]
[1773543056970,0.041919,71556.0,71544.0,0.00144]
[1773543057169,0.33634618,71562.0,71544.0,0.00144]
[1773543057568,0.041921,71553.0,71538.0,0.041929]
[1773543057766,0.041919,71555.0,71540.0,0.041927]
[1773543058272,0.041919,71555.0,71540.0,0.37732557]
[1773543058466,0.041919,71555.0,71541.0,0.041927]
[1773543059077,0.33778618,71566.0,71540.0,0.33539857]
[1773543059265,0.041918,71557.0,71544.0,0.33539857]
[1773543059458,0.041919,71556.0,71544.0,0.33539857]
[1773543060159,0.041919,71556.0,71541.0,0.041927]
[1773543060465,0.33634618,71563.0,71539.0,0.00144]
[1773543060661,0.00144,71566.0,71540.0,0.00144]
[1773543060959,0.041919,71556.0,71545.0,0.33539857]
[1773543061159,0.04192,71554.0,71545.0,0.33539857]
[1773543061363,0.33778618,71566.0,71545.0,0.33539857]
[1773543061564,0.041919,71556.0,71545.0,0.33539857]
[1773543061765,0.33634618,71562.0,71541.0,0.041927]
[1773543061971,0.041922,71551.0,71542.0,0.00144]
[1773543062171,0.37826618,71553.0,71543.0,0.00144]
[1773543062367,0.37826618,71553.0,71544.0,0.00144]
[1773543062567,0.04192,71553.0,71545.0,0.00144]
[1773543062775,0.33634618,71558.0,71536.0,0.33539857]
[1773543062968,0.33634618,71558.0,71537.0,0.043369]
[1773543063274,0.041922,71550.0,71537.0,0.043369]
[1773543063473,0.041921,71552.0,71538.0,0.041928]
[1773543063868,0.041921,71552.0,71539.0,0.00144]
[1773543064572,0.33634618,71551.0,71531.0,0.30768]
[1773543064765,0.041925,71545.0,71532.0,0.00144]
[1773543065362,0.041926,71544.0,71532.0,0.00144]
[1773543065671,0.041924,71547.0,71537.0,0.33539857]
[1773543066176,0.33634618,71555.0,71532.0,0.33683857]
[1773543066477,0.33634618,71555.0,71533.0,0.041931]
[1773543066876,0.33634618,71555.0,71533.0,0.37732957]
[1773543067079,0.33634618,71554.0,71510.0,0.33539857]
[1773543067377,0.33634618,71558.0,71526.0,0.33539857]
[1773543067571,0.33634618,71558.0,71504.0,0.349628]
[1773543067572,0.33634618,71552.0,71528.0,0.33539857]
[1773543067773,0.041928,71539.0,71529.0,0.00144]
[1773543067967,0.041928,71539.0,71528.0,0.33539857]
[1773543067968,0.33634618,71545.0,71530.0,0.00144]
[1773543068472,0.33634618,71537.0,71530.0,0.00144]
[1773543068668,0.041932,71533.0,71530.0,0.00144]
[1773543068969,0.041933,71532.0,71529.0,0.00144]
[1773543069574,0.33634618,71525.0,71513.0,0.00144]
[1773543069777,0.33634618,71518.0,71508.0,0.00144]
[1773543070072,0.45217702,71547.0,71512.0,0.33539857]
[1773543070073,0.041936,71526.0,71512.0,0.33539857]
[1773543070380,0.041937,71524.0,71513.0,0.00144]
[1773543070687,0.041938,71523.0,71513.0,0.00144]
[1773543070874,0.041938,71523.0,71496.0,0.30768]
[1773543070875,0.33634618,71537.0,71511.0,0.00144]
[1773543071176,0.33634618,71537.0,71501.0,0.04195]
[1773543071370,0.33634618,71537.0,71502.0,1.50144]
[1773543071568,0.041947,71507.0,71502.0,1.5]
[1773543071881,0.33634618,71524.0,71503.0,0.33683857]
[1773543072468,0.041942,71516.0,71503.0,0.33683857]
[1773543072679,0.33634618,71523.0,71504.0,0.00144]
[1773543072972,0.33634618,71516.0,71505.0,0.00144]
[1773543073172,0.041946,71510.0,71506.0,0.00144]
[1773543073378,0.041946,71510.0,71507.0,0.00144]
[1773543073570,0.041946,71509.0,71507.0,0.00144]
[1773543073765,0.00144,71528.0,71507.0,0.00144]
[1773543073970,0.041943,71515.0,71507.0,0.00144]
[1773543074280,0.041942,71517.0,71507.0,0.00144]
[1773543074579,0.00144,71524.0,71507.0,0.00144]
[1773543074580,0.041944,71513.0,71507.0,0.00144]
[1773543074773,0.04194,71519.0,71508.0,0.00144]
[1773543074976,0.041941,71518.0,71508.0,0.00144]
[1773543075177,0.041941,71518.0,71505.0,0.041948]
[1773543075374,0.041941,71518.0,71506.0,0.00144]
[1773543076776,0.33634618,71523.0,71506.0,0.00144]
[1773543076976,0.041941,71519.0,71506.0,0.00144]
[1773543077183,0.33634618,71523.0,71506.0,0.33683857]
[1773543077184,0.041938,71523.0,71506.0,0.33683857]
[1773543077368,0.041919,71556.0,71516.0,0.041942]
[1773543077369,0.33778618,71538.0,71516.0,0.041942]
[1773543077568,0.041934,71530.0,71517.0,0.00144]
[1773543077886,0.041944,71513.0,71500.0,0.00144]
[1773543078380,0.33634618,71518.0,71501.0,0.00144]
[1773543078580,0.041948,71507.0,71502.0,0.00144]
[1773543078778,0.041949,71504.0,71487.0,0.33539857]
[1773543079084,0.041948,71507.0,71489.0,0.33539857]
[1773543079374,0.33634618,71511.0,71490.0,0.00144]
[1773543079580,0.04195,71503.0,71490.0,0.00144]
[1773543079781,0.33778618,71511.0,71486.0,1.50014631]
[1773543080080,0.04195,71502.0,71491.0,0.00045]
[1773543080276,0.041951,71501.0,71491.0,0.00045]
[1773543080478,0.33634618,71509.0,71488.0,0.33539857]
[1773543080680,0.041952,71499.0,71486.0,1.50014631]
[1773543080878,0.00144,71511.0,71487.0,0.00144]
[1773543080879,0.041957,71491.0,71487.0,0.00144]
[1773543081184,0.041957,71491.0,71470.0,0.02845408]
[1773543081185,0.00144,71492.0,71470.0,0.02845408]
[1773543081376,0.33634618,71490.0,71470.0,0.02845408]
[1773543081578,0.32912448,71480.0,71470.0,0.02405905]
[1773543081881,0.04197,71468.0,71458.0,0.00144]
[1773543082084,0.04197,71468.0,71459.0,0.00144]
[1773543082282,0.04197,71468.0,71452.0,0.041979]
[1773543082481,0.04197,71468.0,71453.0,0.00144]
[1773543083187,0.041972,71465.0,71453.0,0.00144]
[1773543083479,0.00014245,71464.0,71454.0,0.00144]
[1773543084087,0.00014631,71463.0,71454.0,0.00144]
[1773543084583,0.00014631,71462.0,71448.0,0.33225296]
[1773543084780,0.041975,71461.0,71449.0,0.00144]
[1773543084982,0.041975,71461.0,71450.0,0.00144]
[1773543085280,0.32912448,71466.0,71444.0,0.041984]
[1773543085485,0.32912448,71462.0,71445.0,0.00144]
[1773543085694,0.32912448,71462.0,71446.0,0.00144]
[1773543085877,0.32912448,71462.0,71447.0,0.041982]
[1773543086076,0.041976,71458.0,71446.0,0.00144]
[1773543086277,0.041975,71461.0,71443.0,0.33225296]
[1773543086479,0.041975,71461.0,71447.0,0.00144]
[1773543087475,0.32912448,71480.0,71456.0,0.33225296]
[1773543087689,0.32912448,71480.0,71457.0,0.00144]
[1773543087983,0.32912448,71465.0,71458.0,0.00144]
[1773543088183,0.32912448,71473.0,71455.0,0.00144]
[1773543088384,0.041972,71464.0,71456.0,0.00144]
[1773543089590,0.041974,71462.0,71447.0,0.041982]
[1773543089882,0.041974,71462.0,71448.0,0.00144]
[1773543090085,0.37109648,71464.0,71448.0,0.00144]
[1773543090384,0.041971,71466.0,71452.0,0.37423196]
[1773543090692,0.32912448,71474.0,71452.0,0.33225296]
[1773543090882,0.32912448,71479.0,71452.0,0.33225296]
[1773543091087,0.32912448,71479.0,71455.0,0.33225296]
[1773543091289,0.32912448,71479.0,71456.0,0.33369296]
[1773543091483,0.32912448,71479.0,71444.0,1.5]
[1773543091484,0.041964,71478.0,71458.0,0.33225296]
[1773543091790,0.041964,71478.0,71450.0,0.0879354]
[1773543091791,0.041965,71476.0,71462.0,0.33225296]
[1773543091990,0.041967,71473.0,71463.0,0.00144]
[1773543092484,0.041969,71471.0,71463.0,0.00144]
[1773543092684,0.32912448,71476.0,71444.0,1.5]
[1773543092685,0.041973,71463.0,71448.0,0.041981]
[1773543092988,0.041973,71463.0,71449.0,0.00144]
[1773543093199,0.37109748,71463.0,71449.0,0.00144]
[1773543093588,0.37109748,71463.0,71448.0,0.041981]
[1773543093787,0.37109748,71463.0,71450.0,0.00144]
[1773543094188,0.041973,71463.0,71450.0,0.00144]
[1773543094887,0.32912448,71467.0,71450.0,0.00144]
[1773543095094,0.041972,71466.0,71452.0,0.37423196]
[1773543095698,0.041972,71464.0,71450.0,0.04342]
[1773543095895,0.32912448,71476.0,71450.0,0.33369296]
[1773543096292,0.32912448,71476.0,71455.0,0.041977]
[1773543097197,0.32912448,71476.0,71450.0,0.00144]
[1773543097198,0.041962,71482.0,71464.0,0.33225296]
[1773543097399,0.041962,71482.0,71469.0,0.041969]
[1773543097588,0.041962,71482.0,71467.0,0.04197]
[1773543097788,0.041963,71481.0,71467.0,0.04197]
[1773543098196,0.32912448,71487.0,71465.0,0.00144]
[1773543098394,0.041965,71477.0,71465.0,0.00144]
[1773543098698,0.041964,71479.0,71465.0,0.00144]
[1773543098903,0.041963,71481.0,71465.0,0.33369296]
[1773543099392,0.041963,71480.0,71465.0,0.37566496]
[1773543099694,0.33056448,71488.0,71465.0,0.33369296]
[1773543099888,0.041963,71481.0,71467.0,0.37422296]
[1773543100089,0.041963,71480.0,71467.0,0.37422296]
[1773543100398,0.33056448,71488.0,71469.0,0.33225296]
[1773543100588,0.00144,71488.0,71469.0,0.33225296]
[1773543100790,0.041963,71480.0,71469.0,0.33225296]
[1773543101591,0.041966,71476.0,71470.0,0.00144]
[1773543101793,0.041966,71476.0,71463.0,0.041973]
[1773543101993,0.041966,71476.0,71464.0,0.00144]
[1773543102696,0.32912448,71481.0,71455.0,0.041977]
[1773543102697,0.32912448,71475.0,71455.0,0.041977]
[1773543102896,0.041969,71470.0,71456.0,0.041977]
[1773543103202,0.32912448,71473.0,71452.0,0.041979]
[1773543103786,0.041973,71464.0,71450.0,0.00144]
[1773543103999,0.32912448,71469.0,71450.0,0.33369296]
[1773543104300,0.32912448,71466.0,71450.0,0.00144]
[1773543104492,0.041972,71466.0,71452.0,0.041979]
[1773543104899,0.041973,71464.0,71450.0,1.54342]
[1773543105199,0.041974,71463.0,71451.0,0.00144]
[1773543105597,0.041972,71465.0,71451.0,0.04342]
[1773543105794,0.041973,71464.0,71451.0,0.04342]
[1773543105996,0.041973,71463.0,71451.0,0.00144]
[1773543106199,0.32912448,71466.0,71452.0,0.00144]
[1773543106399,0.041972,71465.0,71452.0,0.00144]
[1773543106699,0.32912448,71474.0,71452.0,0.00144]
[1773543107601,0.041972,71465.0,71452.0,0.043419]
[1773543108102,0.041971,71467.0,71453.0,0.33225296]
[1773543108993,0.041971,71467.0,71454.0,0.041978]
[1773543109700,0.041972,71466.0,71453.0,0.33225296]
[1773543109901,0.041973,71464.0,71453.0,0.33225296]
[1773543110102,0.041973,71464.0,71452.0,0.043419]
[1773543111404,0.041973,71464.0,71453.0,0.00144]
[1773543111600,0.041973,71464.0,71454.0,0.00144]
[1773543114098,0.32983675,71469.0,71454.0,0.00144]
[1773543114404,0.32983675,71474.0,71454.0,0.00244]
[1773543114605,0.041973,71463.0,71454.0,0.00244]
[1773543115102,0.041973,71463.0,71454.0,0.00144]
[1773543115290,0.041974,71461.0,71454.0,0.00144]
[1773543115489,0.32983675,71467.0,71454.0,0.00144]
[1773543115695,0.041975,71460.0,71455.0,0.00144]
[1773543115894,0.041975,71460.0,71456.0,0.00144]
[1773543116296,0.041975,71460.0,71455.0,0.00144]
[1773543116605,0.37181175,71460.0,71455.0,0.00144]
[1773543117301,0.32983675,71460.0,71455.0,0.00144]
[1773543117500,0.041975,71459.0,71454.0,0.00144]
[1773543118300,0.041977,71457.0,71449.0,0.00144]
[1773543120917,0.041974,71461.0,71449.0,0.00144]
[1773543121803,0.041973,71463.0,71449.0,0.33025162]
[1773543122106,0.32983675,71476.0,71453.0,0.32881162]
[1773543122311,0.33127675,71476.0,71454.0,0.37078962]
[1773543122498,0.32983675,71476.0,71450.0,0.08816159]
[1773543122704,0.32983675,71482.0,71462.0,0.37078462]
[1773543122904,0.041966,71475.0,71463.0,0.00144]
[1773543123916,0.32983675,71482.0,71463.0,0.00144]
[1773543125319,0.041966,71475.0,71463.0,0.00144]
[1773543126418,0.40469837,71518.0,71478.0,0.041964]
[1773543126419,0.32983675,71496.0,71478.0,0.041964]
[1773543126603,0.041957,71491.0,71479.0,0.00144]
[1773543127310,0.00144,71502.0,71470.0,0.08816159]
[1773543127311,0.00144,71502.0,71473.0,0.041967]
[1773543127515,0.32983675,71500.0,71474.0,0.00144]
[1773543127908,0.041963,71481.0,71473.0,0.00144]
[1773543128217,0.041961,71483.0,71473.0,0.00144]
[1773543128404,0.32983675,71494.0,71473.0,0.33025162]
[1773543128809,0.04196,71486.0,71473.0,0.37221862]
[1773543129012,0.041959,71488.0,71475.0,0.37077662]
[1773543129307,0.32983675,71494.0,71473.0,0.043407]
[1773543129308,0.041959,71487.0,71473.0,0.043407]
[1773543130305,0.32983675,71494.0,71473.0,0.00144]
[1773543130711,0.04196,71486.0,71473.0,0.043407]
[1773543130908,0.32983675,71496.0,71473.0,0.33025162]
[1773543131112,0.12566017,71506.0,71473.0,0.33025162]
[1773543131113,0.32983675,71505.0,71481.0,0.37077362]
[1773543131411,0.32983675,71505.0,71482.0,0.33025162]
[1773543132016,0.041955,71495.0,71482.0,0.33025162]
[1773543132418,0.041955,71494.0,71482.0,0.33025162]
[1773543133020,0.32983675,71502.0,71482.0,0.37221262]
[1773543133220,0.32983675,71502.0,71482.0,0.33025162]
[1773543133421,0.041955,71494.0,71482.0,0.33025162]
[1773543134227,0.32983675,71497.0,71482.0,0.00144]
[1773543134421,0.32983675,71504.0,71481.0,0.00144]
[1773543134620,0.041958,71489.0,71481.0,0.00144]
[1773543134824,0.041958,71489.0,71474.0,0.041966]
[1773543135028,0.041958,71489.0,71475.0,0.00144]
[1773543135522,0.00144,71518.0,71491.0,0.32881162]
[1773543135723,0.041943,71514.0,71494.0,0.32881162]
[1773543135919,0.32170117,71539.0,71468.0,0.20880467]
[1773543135920,0.041946,71509.0,71495.0,0.33025162]
[1773543136223,0.041946,71509.0,71495.0,0.32881162]
[1773543136427,0.041946,71509.0,71496.0,0.00144]
[1773543137725,0.32983675,71513.0,71496.0,0.00144]
[1773543137726,0.041945,71511.0,71496.0,0.00144]
[1773543137929,0.32983675,71513.0,71496.0,0.00144]
[1773543138125,0.32983675,71512.0,71496.0,0.00144]
[1773543138425,0.041951,71501.0,71486.0,0.041959]
[1773543138619,0.32983675,71507.0,71487.0,0.00144]
[1773543138821,0.041949,71504.0,71488.0,0.041958]
[1773543139021,0.041949,71504.0,71488.0,0.37076962]
[1773543139814,0.041949,71504.0,71489.0,0.00144]
[1773543140528,0.04195,71502.0,71489.0,0.00144]
[1773543140824,0.32983675,71499.0,71478.0,0.041964]
[1773543141025,0.00144,71513.0,71479.0,0.00144]
[1773543141026,0.041955,71494.0,71479.0,0.00144]
[1773543141231,0.041955,71494.0,71480.0,0.00144]
[1773543141414,0.32983675,71495.0,71474.0,0.32881162]
[1773543141620,0.32983675,71495.0,71475.0,0.00144]
[1773543141927,0.00144,71501.0,71476.0,0.00144]
[1773543141928,0.31412688,71500.0,71476.0,0.00144]
[1773543142526,0.31412688,71500.0,71477.0,0.00144]
[1773543142921,0.31412688,71500.0,71474.0,0.041966]
[1773543143230,0.31412688,71500.0,71478.0,0.00144]
[1773543143920,0.041957,71491.0,71478.0,0.00144]
[1773543144826,0.041958,71489.0,71478.0,0.00144]
[1773543145824,0.31412688,71489.0,71466.0,0.2988226]
[1773543146029,0.31412688,71488.0,71467.0,0.041971]
[1773543146229,0.041962,71482.0,71467.0,0.043411]
[1773543146929,0.041963,71481.0,71467.0,0.043411]
[1773543147530,0.041961,71483.0,71468.0,0.3407926]
[1773543148532,0.041962,71482.0,71468.0,0.3407926]
[1773543149823,0.041955,71494.0,71481.0,0.2988226]
[1773543150023,0.041956,71492.0,71482.0,0.00144]
[1773543150529,0.041957,71491.0,71482.0,0.00144]
[1773543151431,0.041957,71490.0,71482.0,0.00144]
[1773543151631,0.31412688,71507.0,71484.0,0.04196]
[1773543151933,0.041954,71496.0,71484.0,0.04196]
[1773543152131,0.041954,71496.0,71482.0,0.3002626]
[1773543152132,0.00144,71501.0,71463.0,0.2988226]
[1773543152323,0.31412688,71491.0,71473.0,0.041967]
[1773543152519,0.041959,71487.0,71474.0,0.00144]
[1773543152924,0.31412688,71491.0,71469.0,0.041969]
[1773543153133,0.041961,71485.0,71470.0,0.043408]
[1773543153331,0.31412688,71491.0,71470.0,0.043408]
[1773543153332,0.041961,71484.0,71470.0,0.043408]
[1773543154734,0.31412688,71491.0,71470.0,0.00144]
[1773543154935,0.31412688,71491.0,71471.0,0.00144]
[1773543155728,0.31412688,71492.0,71467.0,0.04197]
[1773543155930,0.00144,71493.0,71469.0,0.2988226]
[1773543156231,0.04196,71486.0,71473.0,0.3407896]
[1773543156435,0.04196,71486.0,71474.0,0.00144]
[1773543157736,0.041961,71484.0,71474.0,0.00144]
[1773543158036,0.041962,71482.0,71474.0,0.00144]
[1773543158233,0.041963,71480.0,71474.0,0.00144]
[1773543159636,0.041962,71482.0,71474.0,0.00144]
[1773543159834,0.31412688,71481.0,71451.0,0.16683467]
[1773543160039,0.31412688,71481.0,71456.0,0.2988226]
[1773543160230,0.041963,71480.0,71459.0,0.2988226]
[1773543160429,0.041946,71509.0,71465.0,0.2988226]
[1773543160430,0.041964,71479.0,71465.0,0.2988226]
[1773543160630,0.041964,71479.0,71466.0,0.00144]
[1773543161436,0.041965,71478.0,71466.0,0.00144]
[1773543163243,0.31412688,71479.0,71464.0,0.00144]
[1773543163540,0.31412688,71479.0,71456.0,0.041977]
[1773543163541,0.31412688,71478.0,71465.0,0.00144]
[1773543163838,0.041969,71470.0,71457.0,0.041976]
[1773543164039,0.041969,71470.0,71458.0,0.00144]
[1773543164732,0.04197,71468.0,71454.0,0.041978]
[1773543164932,0.041971,71467.0,71455.0,0.00144]
[1773543165336,0.041973,71464.0,71456.0,0.00144]
[1773543165530,0.041973,71464.0,71457.0,0.00144]
[1773543165737,0.041973,71464.0,71458.0,0.00144]
[1773543166742,0.041971,71466.0,71458.0,0.00144]
[1773543168041,0.31412688,71467.0,71455.0,0.00144]
[1773543168545,0.31412688,71467.0,71444.0,0.2988226]
[1773543168844,0.31412688,71467.0,71445.0,0.02331867]
[1773543169044,0.041974,71462.0,71448.0,0.041982]
[1773543169839,0.041973,71464.0,71450.0,0.04198]
[1773543170040,0.52131149,71493.0,71450.0,0.2841524]
[1773543170247,0.041929,71538.0,71499.0,0.041951]
[1773543170444,0.03344,71519.0,71501.0,0.3261024]
[1773543170647,0.2877488,71513.0,71488.0,0.2841524]
[1773543170849,0.2877488,71509.0,71496.0,0.041954]
[1773543171350,0.2877488,71509.0,71493.0,0.041955]
[1773543171551,0.2877488,71509.0,71491.0,0.00144]
[1773543171552,0.32213218,71500.0,71479.0,0.00144]
[1773543171744,0.28018018,71498.0,71484.0,0.04196]
[1773543172053,0.28018018,71498.0,71485.0,0.041959]
[1773543173441,0.28018018,71498.0,71475.0,0.2742989]
[1773543173645,0.28018018,71491.0,71478.0,0.041964]
[1773543173839,0.28162018,71490.0,71468.0,0.2742989]
[1773543174051,0.28162018,71489.0,71469.0,0.02331157]
[1773543174245,0.00144,71488.0,71470.0,0.02187157]
[1773543174445,0.041961,71484.0,71469.0,0.00144]
[1773543174647,0.32214118,71483.0,71468.0,0.04197]
[1773543175055,0.00144,71488.0,71471.0,0.2742989]
[1773543175246,0.00144,71488.0,71477.0,0.041964]
[1773543176253,0.32357918,71488.0,71474.0,0.041966]
[1773543176653,0.28162018,71488.0,71474.0,0.041966]
[1773543177053,0.28162018,71488.0,71475.0,0.041965]
[1773543177648,0.28162018,71488.0,71476.0,0.041965]
[1773543177854,0.28018018,71482.0,71469.0,0.041969]
[1773543178058,0.28162018,71481.0,71471.0,0.041968]
[1773543178352,0.28162018,71481.0,71462.0,0.2757389]
[1773543178353,0.00144,71480.0,71462.0,0.2757389]
[1773543178653,0.00144,71480.0,71463.0,0.00144]
[1773543179054,0.00144,71480.0,71467.0,0.04197]
[1773543179257,0.00144,71480.0,71468.0,0.041969]
[1773543180657,0.00144,71480.0,71468.0,0.042969]
[1773543182243,0.00144,71480.0,71462.0,0.2742989]
[1773543182444,0.00144,71480.0,71468.0,0.001]
[1773543182854,0.043403,71480.0,71468.0,0.001]
[1773543183253,0.00144,71480.0,71468.0,0.001]
[1773543183858,0.00144,71480.0,71467.0,0.041971]
[1773543184046,0.00144,71480.0,71468.0,0.001]
[1773543184658,0.28162018,71480.0,71467.0,0.041971]
[1773543184955,0.041968,71473.0,71451.0,0.2742989]
[1773543185156,0.28018018,71474.0,71451.0,0.2742989]
[1773543185347,0.00144,71473.0,71460.0,0.041975]
[1773543185552,0.00144,71473.0,71451.0,0.2742989]
[1773543185553,0.043408,71473.0,71451.0,0.2742989]
[1773543185755,0.041968,71472.0,71457.0,0.041976]
[1773543186154,0.41839553,71506.0,71469.0,0.041969]
[1773543186354,0.00144,71506.0,71496.0,0.2742989]
[1773543186554,0.00144,71511.0,71492.0,0.2742989]
[1773543186855,0.12879184,71528.0,71492.0,0.041956]
[1773543186856,0.041948,71507.0,71492.0,0.041956]
[1773543187050,0.28018018,71505.0,71487.0,0.00144]
[1773543187251,0.041952,71499.0,71483.0,0.041961]
[1773543187445,0.00144,71498.0,71484.0,0.04196]
[1773543187658,0.00144,71498.0,71485.0,0.04196]
[1773543188260,0.041954,71496.0,71465.0,0.2742989]
[1773543188459,0.041954,71496.0,71467.0,0.2742989]
[1773543188661,0.041954,71496.0,71469.0,0.2742989]
[1773543188859,0.041955,71495.0,71480.0,0.041962]
[1773543189057,0.041955,71493.0,71475.0,0.2742989]
[1773543189259,0.041954,71496.0,71480.0,0.041963]
[1773543189460,0.041955,71495.0,71480.0,0.041963]
[1773543189958,0.041955,71493.0,71478.0,0.041964]
[1773543190163,0.28018018,71497.0,71476.0,0.041965]
[1773543190561,0.041956,71492.0,71477.0,0.041964]
[1773543190766,0.00144,71491.0,71475.0,0.2742989]
[1773543190964,0.041958,71488.0,71475.0,0.2742989]
[1773543191156,0.043397,71491.0,71476.0,0.041965]
[1773543191358,0.041958,71490.0,71476.0,0.041965]
[1773543191557,0.00144,71491.0,71475.0,0.2742989]
[1773543191964,0.043397,71491.0,71476.0,0.041965]
[1773543192165,0.043397,71491.0,71477.0,0.041964]
[1773543192862,0.041958,71490.0,71476.0,0.041965]
[1773543193660,0.32213818,71490.0,71476.0,0.041965]
[1773543194061,0.32213818,71490.0,71474.0,0.041966]
[1773543194256,0.00144,71491.0,71471.0,0.041968]
[1773543194462,0.28162018,71491.0,71476.0,0.001]
[1773543194669,0.041959,71487.0,71476.0,0.001]
[1773543195061,0.041958,71489.0,71476.0,0.001]
[1773543195262,0.041958,71489.0,71474.0,0.041966]
[1773543195968,0.041958,71489.0,71470.0,0.2742989]
[1773543196173,0.041959,71487.0,71472.0,0.041967]
[1773543199267,0.041962,71482.0,71468.0,0.04197]
[1773543199473,0.00144,71481.0,71468.0,0.04197]
[1773543199670,0.043402,71481.0,71467.0,0.04197]
[1773543199969,0.041963,71480.0,71466.0,0.041971]
[1773543200773,0.00144,71481.0,71463.0,0.2742989]
[1773543202073,0.00144,71481.0,71468.0,0.04197]
[1773543202273,0.00144,71481.0,71468.0,0.30911438]
[1773543204075,0.041965,71476.0,71463.0,0.26714438]
[1773543204378,0.041964,71478.0,71464.0,0.041972]
[1773543204778,0.041965,71477.0,71464.0,0.041972]
[1773543205479,0.26948555,71481.0,71459.0,0.26714438]
[1773543205799,0.041966,71476.0,71463.0,0.26714438]
[1773543205968,0.00144,71475.0,71463.0,0.26714438]
[1773543206370,0.041965,71477.0,71463.0,0.30911738]
[1773543206569,0.26948555,71495.0,71467.0,0.26714438]
[1773543206773,0.26948555,71493.0,71467.0,0.26714438]
[1773543206976,0.041964,71479.0,71467.0,0.26714438]
[1773543207177,0.00144,71478.0,71467.0,0.26714438]
[1773543207680,0.00144,71477.0,71467.0,0.30911438]
[1773543207870,0.00144,71476.0,71467.0,0.30911438]
[1773543208066,0.041962,71481.0,71467.0,0.30911438]
[1773543208271,0.00144,71480.0,71467.0,0.30911438]
[1773543208471,0.043403,71480.0,71467.0,0.30911438]
[1773543208672,0.00144,71479.0,71467.0,0.30911438]
[1773543209078,0.041963,71480.0,71467.0,0.30911438]
[1773543209270,0.00144,71479.0,71467.0,0.30911438]
[1773543209872,0.043404,71479.0,71467.0,0.30911438]
[1773543210570,0.041965,71477.0,71467.0,0.26714438]
[1773543210782,0.041965,71477.0,71465.0,0.041972]
[1773543211580,0.043404,71479.0,71466.0,0.041971]
[1773543211777,0.041964,71479.0,71466.0,0.041971]
[1773543211984,0.00144,71478.0,71466.0,0.041971]
[1773543212485,0.00144,71478.0,71467.0,0.001]
[1773543213073,0.00144,71478.0,71466.0,0.041971]
[1773543216386,0.0014,71477.0,71467.0,0.26714438]
[1773543217086,0.0014,71477.0,71466.0,0.041971]
[1773543217291,0.0014,71477.0,71466.0,0.30911538]
[1773543218390,0.0014,71477.0,71467.0,0.001]
[1773543218890,0.0014,71477.0,71467.0,0.26814438]
[1773543219085,0.0014,71477.0,71467.0,0.26714438]
[1773543220081,0.0014,71477.0,71467.0,0.26814438]
[1773543221289,0.0014,71476.0,71469.0,0.041969]
[1773543221589,0.0014,71475.0,71469.0,0.26714438]
[1773543221792,0.0014,71474.0,71469.0,0.26714438]
[1773543222091,0.041964,71478.0,71469.0,0.26714438]
[1773543222092,0.0014,71473.0,71469.0,0.26714438]
[1773543222282,0.0014,71472.0,71469.0,0.26714438]
[1773543222491,0.041964,71478.0,71469.0,0.26714438]
[1773543222682,0.0014,71472.0,71469.0,0.26714438]
[1773543222877,0.0014,71472.0,71467.0,0.001]
[1773543222878,0.041962,71483.0,71471.0,0.26714438]
[1773543223083,0.0014,71482.0,71473.0,0.26714438]
[1773543223282,0.41839553,71497.0,71473.0,0.26714438]
[1773543223583,0.0014,71496.0,71473.0,0.26714438]
[1773543223783,0.27088555,71496.0,71473.0,0.26714438]
[1773543223990,0.041963,71481.0,71473.0,0.26714438]
[1773543224189,0.0014,71480.0,71470.0,0.08811712]
[1773543224778,0.0014,71480.0,71470.0,0.3552615]
[1773543225489,0.041963,71481.0,71470.0,0.3552615]
[1773543225693,0.0014,71480.0,71470.0,0.3552615]
[1773543226487,0.0014,71480.0,71471.0,0.26714438]
[1773543227483,0.0014,71479.0,71471.0,0.26714438]
[1773543227684,0.0014,71478.0,71471.0,0.26714438]
[1773543227889,0.041963,71481.0,71471.0,0.26714438]
[1773543228087,0.26948555,71491.0,71451.0,0.16683467]
[1773543228088,0.0014,71477.0,71461.0,0.26714438]
[1773543228283,0.0014,71476.0,71466.0,0.26714438]
[1773543228590,0.0014,71475.0,71466.0,0.26714438]
[1773543228784,0.0014,71476.0,71466.0,0.26714438]
[1773543229793,0.01,71526.0,71496.0,0.26678933]
[1773543230087,0.01,71526.0,71482.0,0.041961]
[1773543230088,0.26160683,71516.0,71499.0,0.041951]
[1773543230288,0.26160683,71514.0,71494.0,0.26678933]
[1773543230498,0.26160683,71512.0,71484.0,0.26818933]
[1773543230792,0.041951,71500.0,71486.0,0.30874833]
[1773543230994,0.041952,71498.0,71490.0,0.08811814]
[1773543231192,0.0014,71498.0,71490.0,0.08811814]
[1773543231989,0.043352,71498.0,71486.0,0.26678933]
[1773543232192,0.08022388,71497.0,71484.0,0.043361]
[1773543232386,0.08022388,71497.0,71485.0,0.31489984]
[1773543232588,0.08022388,71497.0,71484.0,0.043361]
[1773543232902,0.12217688,71497.0,71484.0,0.041961]
[1773543233094,0.08022388,71497.0,71477.0,0.27665874]
[1773543233300,0.041956,71493.0,71479.0,0.041963]
[1773543234200,0.041954,71495.0,71481.0,0.27665874]
[1773543234499,0.08022388,71492.0,71481.0,0.27665874]
[1773543234802,0.043357,71491.0,71477.0,0.043364]